Cogmind - Beta 15 @@@ ROGUE MODE // 2025.05.17 @ 22:34:07 Player: jumpy Result: Destroyed by G-34 Mercenary with Small Laser Performance ------------- Evolutions (1) 500 Regions Visited (2) 400 Robots Destroyed (35) 175 Value Destroyed (766) 766 Prototype IDs (0) 0 Alien Tech Used (0) 0 Bonus (0) 0 TOTAL SCORE: 1841 Bonus ------- None Cogmind --------- Core Integrity 0/400 Matter 280/300 Energy 42/240 System Corruption 0% Temperature Cool (38) Movement Core (550) Ox10 Location -9/Materials Parts ------- > --- POWER (1) -------- Nuclear Core > --- PROPULSION (2) --- (None) > --- UTILITY (4) ------ Large Storage Unit Improved Targeting Computer > --- WEAPON (2) ------- EM Pulse Cannon > --- INVENTORY (15) --- Nuclear Core Nuclear Core Wheel High-capacity Storage Unit Visual Processing Unit Signal Interpreter Seismic Detector Improved Targeting Computer Peak State ------------ > --- POWER ------------ Nuclear Core > --- PROPULSION ------- Light Treads Light Treads > --- UTILITY ---------- Large Storage Unit Improved Terrain Scanner Seismic Detector Improved Targeting Computer > --- WEAPON ----------- Small Laser Small Laser > --- INVENTORY -------- Ion Engine Nuclear Core Wheel High-capacity Storage Unit Visual Processing Unit Signal Interpreter Seismic Detector Improved Targeting Computer [Rating: 15] Favorites ----------- Power Ion Engine Engine Ion Engine Power Core Nuclear Core Propulsion Light Treads Treads Light Treads Utility Seismic Detector Device Seismic Detector Storage Large Storage Unit Processor Improved Targeting Computer Weapon Small Laser Energy Gun Small Laser Energy Cannon EM Pulse Cannon Build | -11 -10 -9 ------- Run | Yrd Mat Mat Slots Evolved 2 | . . 2 Power . | . . . Propulsion . | . . . Utility 2 | . . 2 Weapon . | . . . Parts Attached 21 | 7 8 6 Power 5 | 1 2 2 Engine 3 | 1 2 . Core 2 | . . 2 Reactor . | . . . Propulsion 4 | 2 2 . Treads 4 | 2 2 . Leg . | . . . Wheel . | . . . Hover . | . . . Flight . | . . . Utility 6 | 2 1 3 Device 3 | 1 . 2 Storage 2 | 1 1 . Processor 1 | . . 1 Hackware . | . . . Protection . | . . . Artifact . | . . . Weapon 6 | 2 3 1 Energy Gun 5 | 2 3 . Energy Cannon 1 | . . 1 Ballistic Gun . | . . . Ballistic Cannon . | . . . Launcher . | . . . Special Weapon . | . . . Impact Weapon . | . . . Slashing Weapon . | . . . Piercing Weapon . | . . . Special Melee Weapon . | . . . Unidentified Prototypes . | . . . Parts Lost 10 | . 3 7 Power 3 | . 2 1 Propulsion 2 | . . 2 Utility 2 | . . 2 Weapon 3 | . 1 2 Highest Loss Streak 7 | . 3 7 To Critical Strikes . | . . . Average Backups 7 | 3 8 7 Power . | . . 1 Propulsion 1 | 1 1 1 Utility 4 | . 5 5 Weapon . | . . . Tool/Special . | . . . Unused Backups 8 | . 1 7 Power 2 | . . 2 Propulsion 2 | . 1 1 Utility 4 | . . 4 Weapon . | . . . Tool/Special . | . . . Average Slot Usage (%) 94 | . 97 76 Engine 11 | . 12 4 Treads 25 | . 27 14 Device 14 | . 14 15 Storage 13 | . 14 11 Processor 1 | . . 10 Energy Gun 26 | . 28 14 Peak Build Rating 15 | 7 8 15 Average Rating 7 | 6 7 10 On Entrance 5 | . 7 8 Naked Turns . | . . . Heaviest Build 33 | 14 29 33 Greatest Support 40 | 40 40 40 Greatest Overweight (x) 10 | . 1 10 Average Overweight (x) . | . . . Largest Inventory Capacity 15 | 8 15 15 Average Capacity 12 | 7 13 15 Most Carried 12 | 5 12 10 Average Carried 7 | 3 8 7 Final Capacity 15 | 8 15 15 Final Carried 8 | 5 8 8 Class Distribution -------------------- 98% | Mutant Dominant Class ---------------- Mutant | -10/Materials Mutant | -9/Materials Resources | -11 -10 -9 ----------- Run | Yrd Mat Mat Matter Collected 397 | 270 90 37 Remotely . | . . . Salvage Created 1194 | 235 775 184 Parts 68 | 18 40 10 Haulers Intercepted 1 | . 1 . Recyclers Shooed 3 | . 3 . Parts Field Recycled . | . . . Retrieved Matter . | . . . Parts Self-Destructed . | . . . Prevented . | . . . Kills | -11 -10 -9 ------- Run | Yrd Mat Mat Combat Hostiles Destroyed 23 | . 19 4 Guns 20 | . 18 2 Cannons 2 | . . 2 Classes Destroyed 8 | 3 4 1 Worker 1 | 1 . . Tunneler 6 | 6 . . Hauler 1 | . 1 . Recycler 2 | 1 1 . Watcher 2 | . 1 1 Swarmer 6 | . 6 . Grunt 16 | . 13 3 Duelist 1 | . . 1 Best Kill Streak 3 | 2 3 2 Combat Bots Only 3 | . 3 2 Max Kills in Single Turn 2 | 1 2 1 Gunslinging . | . . . Exploded . | . . . Melee . | . . . Uniques/NPCs Destroyed . | . . . Combat | -11 -10 -9 -------- Run | Yrd Mat Mat Hostile Shots Fired 205 | . 118 87 Missed 42 | . 24 18 Hits 163 | . 94 69 Melee 3 | . . 3 Projectile 160 | . 94 66 Damage Taken 1860 | . 972 888 Core 603 | . 203 400 Absorbed by Shields . | . . . Regen/Repaired (Parts) 115 | . 115 . Core Remaining (%) 59 | 100 18 . Volleys Fired 125 | 24 87 14 Largest 2 | 2 2 2 Hottest 90 | 90 90 80 Shots Fired 240 | 48 174 18 Gun 236 | 48 174 14 Cannon 4 | . . 4 Launcher . | . . . Special . | . . . Kinetic . | . . . Thermal 236 | 48 174 14 Explosive . | . . . Electromagnetic 4 | . . 4 Robot Hit Streak 14 | 8 14 8 Robot Miss Streak 3 | 3 3 2 Penetration Max . | . . . Secondary Targets 1 | . 1 . Max Gunslinging Chain 1 | . 1 . Shots Hit Robots 169 | 30 125 14 Core Hits 60 | 9 42 9 Critical Kills . | . . . Critical Parts Destroyed . | . . . Critical Strikes 3 | 1 2 . Burn 3 | 1 2 . Melee Attacks . | . . . Impact . | . . . Slashing . | . . . Piercing . | . . . Sneak Attacks . | . . . Combat Hostiles . | . . . Follow-up Attacks . | . . . Damage Inflicted 2054 | 359 1473 222 Guns 1946 | 359 1465 122 Cannons 87 | . . 87 Explosions . | . . . Melee . | . . . Ramming 21 | . 8 13 Kinetic . | . . . Thermal 1946 | 359 1465 122 Explosive . | . . . Electromagnetic 87 | . . 87 Impact . | . . . Slashing . | . . . Piercing . | . . . Highest Corruption . | . . . Average Corruption . | . . . Corruption Purged . | . . . Corruption Blocked . | . . . Overload Shots . | . . . Overflow Damage . | . . . Projectiles . | . . . Explosions . | . . . Melee . | . . . Knockbacks . | . . . Impact . | . . . Kinetic . | . . . Secondary . | . . . Self-Inflicted Damage 1 | . . 1 Shots . | . . . Rammed 13 | . 6 7 Targets Rammed 13 | . 6 7 Kicked . | . . . Crushed . | . . . Highest Temperature 270 | 102 270 45 Average Temperature 72 | 38 87 20 Received Heat Transfer 828 | . 381 447 Siege Activations . | . . . Martial Activations . | . . . Shielding Activations . | . . . Robots Disrupted . | . . . Combat Hostiles . | . . . Robots Corrupted . | . . . Combat Hostiles . | . . . Parts Fried . | . . . Impact Corruptions . | . . . Robots Melted 1 | . 1 . Combat Hostiles 1 | . 1 . Parts Melted 6 | . 6 . Heat Transferred 4743 | 1004 3464 275 Parts Sabotaged . | . . . Parts Stolen . | . . . Parts Stripped . | . . . Power Chain Reactions . | . . . Alert | -11 -10 -9 ------- Run | Yrd Mat Mat Maximum Alert Level 1 | . 1 . Low Security (%) 98 | 100 98 100 Level 1 1 | . 1 . Level 2 . | . . . Level 3 . | . . . Level 4 . | . . . Level 5 . | . . . High Security . | . . . Max Security . | . . . Peak Influence 204 | 10 204 81 Initial 81 | . . 81 Average 61 | 1 78 48 Influence Increases 708 | 40 561 107 Destroy 0b10 Robot/C 460 | . 380 80 Destroy 0b10 Robot/NC 60 | 40 15 5 Destroy Leader 106 | . 84 22 Successful Hack 7 | . 7 . Lose Combat Pursuer 75 | . 75 . Influence Decreases 668 | 40 366 262 Entered New Map 114 | . . 114 Time Decay 456 | 40 336 80 Lost Part 98 | . 30 68 Squads Dispatched 5 | . 5 . Investigation 3 | . 3 . Extermination . | . . . Reinforcement 2 | . 2 . Assault . | . . . Garrison . | . . . Intercept . | . . . Searches Triggered . | . . . Construction Impeded . | . . . Haulers Reinforced . | . . . Active Scanning Responses . | . . . Cargo Convoy Interrupts . | . . . Stealth | -11 -10 -9 --------- Run | Yrd Mat Mat Distress Signals 2 | . 2 . Communications Jammed . | . . . Distress Signals . | . . . Times Spotted 40 | . 32 8 Peak Tracking Total 6 | . 6 6 Tactical Retreats 5 | . 5 . Traps | -11 -10 -9 ------- Run | Yrd Mat Mat Traps Triggered 2 | . 2 . Indirectly . | . . . Trap Hack Attempts . | . . . Triggered . | . . . Disarmed . | . . . Reprogrammed . | . . . Reused . | . . . Traps Extracted . | . . . Installed . | . . . Triggered . | . . . Machines | -11 -10 -9 ---------- Run | Yrd Mat Mat Machines Disabled . | . . . Max in Single Turn . | . . . Machines Repaired . | . . . Machines Dismantled . | . . . Machines Sabotaged . | . . . Overloaded Fab Kills . | . . . Hacking | -11 -10 -9 --------- Run | Yrd Mat Mat Machines Accessed 6 | . 6 . Terminals 5 | . 5 . Fabricators . | . . . Repair Stations 1 | . 1 . Recycling Units . | . . . Scanalyzers . | . . . Garrison Access . | . . . Total Hacks 13 | . 13 . Successful 8 | . 8 . Failed 5 | . 5 . Catastrophic 1 | . 1 . Database Lockouts . | . . . Manual 10 | . 10 . Terminals 10 | . 10 . Fabricators . | . . . Repair Stations 3 | . 3 . Recycling Units . | . . . Scanalyzers . | . . . Garrison Access . | . . . Terminal Hacks 1 | . 1 . Robot Analysis 1 | . 1 . Fabricator Hacks . | . . . Repair Station Hacks 2 | . 2 . Scan Component 1 | . 1 . Repair 1 | . 1 . Recycling Unit Hacks . | . . . Scanalyzer . | . . . Garrison Access Hacks . | . . . Unauthorized Hacks 5 | . 5 . Terminals 5 | . 5 . Assimilate 1 | . 1 . Skim 4 | . 4 . Fabricators . | . . . Repair Stations . | . . . Recycling Units . | . . . Scanalyzers . | . . . Garrison Access . | . . . Data Cores Recovered . | . . . Used . | . . . Hacking Detections 4 | . 4 . Full Trace Events 1 | . 1 . Feedback Events . | . . . Feedback Blocked . | . . . Robot Schematics Acquired . | . . . Robots Built . | . . . Authchips . | . . . Time . | . . . Total Robot Build Rating . | . . . Part Schematics Acquired . | . . . Parts Built . | . . . Authchips . | . . . Time . | . . . Total Part Build Rating . | . . . Parts Repaired 1 | . 1 . Time 26 | . 26 . Parts Recycled . | . . . Recycled Matter . | . . . Retrieved Matter . | . . . Retrieved Components . | . . . Parts Scanalyzed . | . . . Part Schematics Acquired . | . . . Parts Damaged . | . . . Bothacking | -11 -10 -9 ------------ Run | Yrd Mat Mat Used RIF Installer . | . . . Robots Hacked . | . . . Non-combat . | . . . Combat . | . . . Robot Hacks Applied . | . . . Relay Couplers Released . | . . . Fabnet Peak Effective % . | . . . Robots Rewired . | . . . Allies Hacked . | . . . Hacks Repelled . | . . . Allies | -11 -10 -9 -------- Run | Yrd Mat Mat Total Allies . | . . . Largest Group . | . . . Highest-Rated Group . | . . . Highest-Rated Ally . | . . . Total Orders . | . . . Ally Attacks . | . . . Total Damage . | . . . Kills . | . . . Allies Corrupted . | . . . Allies Melted . | . . . Intel | -11 -10 -9 ------- Run | Yrd Mat Mat Active Infowar (turns) 1498 | 183 1168 147 Terrain 112 | . . 112 Seismic 1498 | 183 1168 147 Robot Analysis Total 1 | . 1 . Derelict Logs Recovered . | . . . Drone Launches . | . . . Drone Recoveries . | . . . Exploration | -11 -10 -9 ------------- Run | Yrd Mat Mat Turns Passed 1660 | 306 1168 186 Spaces Moved 718 | 138 518 62 Core 9 | 2 . 7 Treads 709 | 136 518 55 Legs . | . . . Wheels . | . . . Hover . | . . . Flight . | . . . Fastest Speed 50 | 50 160 160 Average Speed 163 | 158 161 187 Slowest Speed 550 | 160 240 550 Overloaded Moves . | . . . Propulsion Burnouts . | . . . Robots Hopped . | . . . Potential Cave-ins . | . . . Cave-ins Triggered . | . . . Exploration Rate (%) 36 | 8 91 10 Regions Visited 2 Branch Regions . Pre-discovered Areas . | . . . Known Exits Taken . | . . . Unknown Exits Taken 2 | 1 1 . Scrap Searched . | . . . Spaces Dug . | . . . Terrain Destroyed . | . . . Melee . | . . . Projectile . | . . . AOE . | . . . Terrain Rammed . | . . . Walls Destroyed . | . . . Machines Disabled . | . . . Actions | -11 -10 -9 --------- Run | Yrd Mat Mat Total 940 | 174 671 95 Wait 40 | 1 38 1 Move 716 | 137 517 62 Hop . | . . . Pick Up 17 | 5 9 3 Fast Attach 9 | 7 1 1 Attach 6 | . 3 3 Detach . | . . . Swap 7 | . 5 2 Drop 7 | . 5 2 Fire 125 | 24 87 14 Melee . | . . . Ram 4 | . . 4 Kick . | . . . Crush 9 | . 6 3 Escape Stasis . | . . . Rewire . | . . . Trap . | . . . Miscellaneous . | . . . Route ------- -11/Scrapyard -10/Materials (discovered 4 exits: [*Mat x2] / [*Min x2]) -9/Materials History --------- Turn | Location | Event 2 | -11/Scrapyard | Met Revision 17 37 | -11/Scrapyard | Discovered new exit (range 16) 307 | -11/Scrapyard | Entered Materials 308 | -10/Materials | Build established: Mutant 573 | -10/Materials | Discovered new exit (range 14) 827 | -10/Materials | Discovered new exit (range 9) 1030 | -10/Materials | Core integrity fell below 50% 1068 | -10/Materials | Lost 3 parts (2p1w) 1168 | -10/Materials | Discovered new exit (range 16) 1239 | -10/Materials | Repaired Lgt. Treads 1335 | -10/Materials | Core integrity fell below 20% 1445 | -10/Materials | Discovered new exit (range 10) 1475 | -10/Materials | Entered another Materials area 1475 | -9/Materials | Evolved 2 slots: Utility x2 1630 | -9/Materials | Core integrity fell below 50% 1644 | -9/Materials | Core integrity fell below 20% 1659 | -9/Materials | Lost 7 parts (1p2n2u2w) 1661 | -9/Materials | Destroyed by G-34 Mercenary with Small Laser Last Messages --------------- 01596_ K-01 Serf collects debris. 01597_ R-06 Scavenger collects Core Shielding. 01597_ Lgt. Treads destroyed. 01600_ K-01 Serf collects debris. 01601_ R-06 Scavenger collects Imp. Aluminum Leg. 01604_ Slammed into G-34 Mercenary. 01604_ K-01 Serf collects debris. 01605_ R-06 Scavenger collects Imp. Aluminum Leg. 01607_ Sml. Laser destroyed. 01609_ Slammed into W-16 Scout. 01610_ R-06 Scavenger collects Imp. Ion Engine. 01614_ Slammed into G-47 Trooper. 01622_ Seismic Detector destroyed. 01628_ Nuclear Core destroyed. 01642_ Acquired EM Pulse Cannon. 01644_ G-47 Trooper destroyed. 01646_ G-34 Mercenary destroyed. 01649_ R-06 Scavenger collects Particle Gun. 01653_ R-06 Scavenger collects Aluminum Leg. 01658_ R-06 Scavenger collects Corrupted Imp. Heat Sink. Map ----- +----------------------------------------------------+ | ???????????????????# " #????????????????? | | ?????????????????#?# #????????????????? | | ???????????????????# #### #????????????????? | | ???????????????#??####+#####?? #????????????????? | | ??????????????????# #??? #????????????????? | | ?????????????#????# #????#???#????????????? | | ????????????????### #??? ????????????????? | | ????????????????? / ! #?????????????????????? | | ??????????????#?# # #?????????????????????? | | ???????????#?#??# # #????#????????????????? | | ??????????????#?# # #?????#???????????????? | | ??????????#?????# # #?????????????????????? | | ????????????????# # #?????????????????????? | | ????????????????# #####+####?????????????????????? | | ????????????????# ??#?# #????#???????????????????? | | ????????????????# ????# #????????????????????????? | | ??????? ????????# #???# #??#???????#?????????????? | | ???? ???? ??????# ##### ##???#???????????????????? | | ????????????????# r #????????????????????????? | | ?????????????#??# #####????????????????????? | | ???????????????## !!#??#?????????????????? | | ???? ###### !!#???????"????????????? | | ???????? u ]]#????????????????????? | | ??????????###### g ]#?????????#??????????? | | ???????????????## ### #????????????????????? | | ?????#????#######/### g @ #???????? ???????????? | | ??????????# == #%r ######???????????????????? | | ??????????# == %%#%%!#?????? ????????????????? | | ??????????# == %%/%= #???????? ???????????????? | | ??????????# #% #???? ???????????????????? | | ??????????########### #????????????????????????? | | ????????????????????# #????????????????????????? | | ????????????????????# +???? ????#?????????????? | | ????????????????????# ## ?? ???????????????????? | | ????????? ??????????# #?? ?????????????????????? | | ????????????????????# #???#????????????????????? | | ????????????????????# ????????????????????????? | | ????????????????????/ ????????????????????????? | | ????????????????????# ???????????????????????? | | ????????????? ????? # ##???????????????????????? | | ??????????????????? ? #????????????????????????? | | ??????????????????? ? #????????????????????????? | | ????????????????????? #????????????????????????? | | ????????????????????? #????????????????????????? | | ????????????????????? ?????????????????????????? | | ?????????????????????????????????????????????????? | | ?????????????????????????????????????????????????? | | ?????????????????????????????????????????????????? | | ?????????????????????????????????????????????????? | | ?????????????????????????????????????????????????? | +----------------------------------------------------+ Best States ------------- Heat Dissipation 28 Energy Generation 14 Energy Capacity 250 Matter Stores 300 Matter Capacity 300 Sight Range 16 Terrain Scan Range 16 Terrain Scan Density 10 Evasion (%) 40 Targeting Accuracy 6 Recoil Reduction 2 Item Schematics ----------------- None Robot Schematics ------------------ None Fabricated ------------ Nothing Repaired ---------- Lgt. Treads | 17% | -10/Materials Alien Tech Used ----------------- None Achievements -------------- None Challenges ------------ None Game ------ Seed StormCoilRailcannon Manual? 0 Play Time 00:08:55 Cumulative 100.6 hours Start 2025.05.17 @ 22:25:36 End 2025.05.17 @ 22:34:07 Sessions 1 Manual Loads 0 Difficulty Rogue Special Mode None Game No. 261 Rogue 261 Adventurer 0 Explorer 0 Win Type - Total 2 Types 2/0/0/0/0/0/0/0/0/0 Lore% 48 Gallery% 49 Achievement% 41 Wizard Run 0 Options --------- Layout 0 ASCII 0 Keyboard 0 Movement Numpad Keybinds 0 Fullscreen 2 Font 18/Terminus Map View 76x50 Zoom Use 0% Tactical HUD 1 Map Filters NONE Filters NONE Steam 1 RUN: 2c06d604-a729-400b-b771-2fd54382a28c